[Event "87th Spanish Championship 2022"]
[Site "Linares"]
[Date "2022.08.11"]
[Round "1.19"]
[White "Garrido Diaz, Ernesto"]
[Black "Merario Alarcon, Andres"]
[Result "0-1"]
[ECO "B90"]
[WhiteElo "2146"]
[BlackElo "2418"]
[Annotator "TA"]
[PlyCount "62"]
[EventDate "2022.08.11"]
[EventType "swiss"]
[EventCountry "ESP"]
[SourceTitle "playchess.com"]
[Source "ChessBase"]
[SourceQuality "1"]
[TimeControl "5400+30"]

{[%evp 9,62,18,16,12,2,10,6,5,30,11,10,16,14,0,0,0,0,0,0,0,0,0,0,-47,62,-20,0,0,-6,-6,-9,-47,-20,-12,-8,-291,-95,-503,-507,-500,-496,-466,-466,-288,-256,-727,-715,-2084,-2037,-29979,-29980,-29994,-29995,-29995,-655]} 1. e4 {[%emt 0:00:04]} c5 {[%emt 0:00:19]} 2. Nf3 {[%emt 0:00:11]} d6 {[%emt 0:01:25]} 3. d4 {[%emt 0:00:06]} cxd4 {[%emt 0:00:04]} 4. Nxd4 {[%emt 0:00:15]} Nf6 {[%emt 0:00:09]} 5. Nc3 {[%emt 0:00:14]} a6 {[%emt 0:00:40]} 6. h4 {[%emt 0:02:11] B90: Sicilian Najdorf: Unusual White 6th moves, 6 Be3 Ng4 and 6 Be3 e5.} e5 {[%emt 0:00:33]} 7. Nb3 {[%emt 0:00:05]} Be6 {[%emt 0:00:45]} 8. f4 {[%emt 0:00:37] The position is equal.} g6 {[%emt 0:00:21] Prevents f5.} 9. Be2 {[%emt 0:01:21]} Nc6 {[%emt 0:01:27]} 10. g4 {[%emt 0:04:04]} h6 {[%emt 0:00:07]} 11. f5 {[%emt 0:06:15]} gxf5 {[%emt 0:00:10]} (11... Bxb3 $5 12. axb3 gxf5 $11) 12. gxf5 {[%emt 0:00:24]} Bxb3 {[%emt 0:00:06]} 13. axb3 Qb6 14. Nd5 {[%emt 0:31:52]} Nxd5 {[%emt 0:00:29] [#]} 15. exd5 $146 ({Predecessor:} 15. Qxd5 Be7 16. c3 Bxh4+ 17. Kd1 Ne7 18. Qc4 Rc8 19. Qa4+ Nc6 20. Bd2 Bf6 21. b4 {½-½ (34) Avotins,M (2414)-Pierzak,R (2501) ICCF email 2017}) 15... Nd4 16. Bd3 {[%emt 0:05:36]} (16. Rf1 $11) 16... O-O-O {[%emt 0:16:54]} ({Black should play} 16... Rc8 $15 17. Kf1 Qc5) 17. Bd2 {[%emt 0:05:11]} ({White should try} 17. Be3 $1 $14) 17... e4 {[%emt 0:07:09]} 18. Be2 {[%emt 0:10:23] Strongly threatening Be3.} (18. Bxe4 $2 Re8 19. Qg4 Nxc2+ 20. Ke2 Nxa1 21. Rxa1 Qxb3 $19) 18... Bg7 {[%emt 0:24:39]} 19. Ra4 $1 {[%emt 0:07:02]} Kb8 $36 {[%emt 0:08:38][%mdl 2048] Threatens to win with ...Be5. Black has good play.} 20. Bc3 {[%emt 0:07:17][%cal Rc3d4]} ({Reject} 20. Ba5 Qc5 21. Bxd8 Rxd8 $15) 20... Nxf5 {[%emt 0:03:38]} 21. Bxg7 {[%emt 0:01:04]} Nxg7 {[%emt 0:00:21]} 22. Rxe4 $2 {[%emt 0:01:51][%mdl 8192] [#]} (22. Rf1 $1 $11 {and White stays safe.}) 22... Rhe8 $2 {[%emt 0:10:50]} (22... Nf5 $1 $19 {[%cal Rf5g3] and Black stays clearly on top.} 23. Rh3 Rhg8) 23. Qd4 $2 {[%emt 0:05:30][%mdl 8192] [#]} (23. Rxe8 $17 Rxe8 24. Qd2) 23... Qa5+ $1 $19 {[%emt 0:00:29]} 24. Kf2 {[%emt 0:00:33]} Rxe4 {[%emt 0:02:32]} ({Weaker is} 24... Nf5 25. Qb4 Qxb4 26. Rxb4 Rxe2+ 27. Kxe2 Ng3+ 28. Kf3 Nxh1 29. Rg4 $15) 25. Qxe4 {[%emt 0:00:05]} Re8 {[%emt 0:00:03]} 26. Qd3 {[%emt 0:03:02]} Qc5+ {[%emt 0:02:38]} 27. Kg2 $2 {[%emt 0:00:34] [#]} (27. Kf1 Re5 28. c3) 27... Nf5 $1 {[%emt 0:06:38][%mdl 512] And now ...Rg8+ would win.} 28. Qxf5 {[%emt 0:02:21]} (28. Kf1 Ne3+) 28... Rxe2+ 29. Kf1 {[%emt 0:01:35]} Qe3 {[%emt 0:01:51] Black mates.} 30. Rh3 {[%emt 0:01:49]} Qd2 {[%emt 0:02:01][%csl Ge2][%cal Rd2e1]} 31. Kg1 {[%emt 0:00:57]} Re1+ {[%emt 0:00:14] Weighted Error Value: White=1.00/Black=0.18 (very precise)} (31... Qd4+ $142 32. Re3 Qxe3+ 33. Kf1 Re1+ 34. Kg2 Rg1+ 35. Kh2 Qg3#) 0-1

[Event "87th Spanish Championship 2022"]
[Site "Linares"]
[Date "2022.08.11"]
[Round "1.20"]
[White "Bernabeu Lopez, Carlos Javier"]
[Black "Diaz Mino, Daniel"]
[Result "1-0"]
[ECO "A53"]
[WhiteElo "2421"]
[BlackElo "2151"]
[Annotator "TA"]
[PlyCount "69"]
[EventDate "2022.08.11"]
[EventType "swiss"]
[EventCountry "ESP"]
[SourceTitle "playchess.com"]
[Source "ChessBase"]
[SourceQuality "1"]
[TimeControl "5400+30"]

{[%evp 9,69,17,34,22,35,35,43,-23,-9,-8,-13,-17,0,0,0,-13,-13,-25,21,29,20,25,25,25,66,56,53,18,26,27,136,135,176,138,146,140,221,221,397,384,504,464,667,655,638,626,662,648,802,799,903,897,954,978,866,858,2009,2001,1827,1735,1506,1368]} 1. d4 Nf6 2. c4 d6 3. Nc3 Bf5 4. f3 e5 5. e4 exd4 6. Nd5 {A53: Old Indian Defence without Nf3.} (6. exf5 dxc3 7. Ne2 cxb2 8. Bxb2 Nbd7 $15) 6... Be6 7. Qxd4 Nc6 8. Nxf6+ {[#]} ({White should try} 8. Qc3 $14) 8... Qxf6 $146 ({Predecessor:} 8... gxf6 9. Qe3 Qe7 10. Bd2 O-O-O 11. Bd3 Ne5 12. Bc3 Rg8 13. Kf2 f5 14. exf5 Bh6 {0-1 (39) Ferro,M (2213)-Shirazi,K (2416) Cappelle la Grande 2005}) 9. Qxf6 gxf6 10. Bd2 f5 11. Bc3 Rg8 12. exf5 $1 Bxf5 {[%cal Od6d5]} 13. g4 {[%cal Bg2g4,Bg4g5][%mdl 32]} Bg6 (13... Bd7 $142) 14. h4 $11 {[#] Strongly threatening h5.} h5 15. g5 O-O-O 16. O-O-O Bg7 17. Bxg7 Rxg7 18. Nh3 Ne5 19. Be2 {[%cal Bf1e2,Be2d3,Bd3c2][%mdl 32]} f5 {Black is on the road to losing.} (19... Rgg8 $11 {keeps the balance.}) 20. Nf4 $16 Re8 {Prevents Ne6.} 21. Rhe1 Bf7 22. b3 c6 (22... a5 $16 23. Bd3 Nxf3 24. Bxf5+ Kb8) 23. Bd3 $18 ({Resist} 23. Rxd6 $6 Nxf3 24. Rh1 (24. Bxf3 Rxe1+ 25. Kd2 Rf1 $11) 24... Re4) 23... Bg6 (23... Nxd3+ 24. Nxd3 Rgg8 25. Rxe8+ Bxe8) 24. Re3 Kd7 25. Bc2 {White is clearly winning.} Rf7 {[#]} (25... Rge7 $142 26. Rxe5 Rxe5 27. Nxg6 Re3 28. Bxf5+ Kc7) 26. Rxe5 $1 {[%mdl 512]} Rxe5 27. Nxg6 Re3 28. Kd2 f4 29. Be4 a5 30. Rf1 d5 31. cxd5 cxd5 32. Bxd5 Rf5 33. Be4 Rc5 34. Nxf4 Rec3 35. Ne2 {Weighted Error Value: White=0.10 (very precise) /Black=0.46} 1-0

[Event "87th Spanish Championship 2022"]
[Site "Linares"]
[Date "2022.08.11"]
[Round "1.21"]
[White "Rey Martinez, Jaime"]
[Black "Moreno Tejera, Emilio"]
[Result "0-1"]
[ECO "C68"]
[WhiteElo "2117"]
[BlackElo "2420"]
[Annotator "TA"]
[PlyCount "98"]
[EventDate "2022.08.11"]
[EventType "swiss"]
[EventCountry "ESP"]
[SourceTitle "playchess.com"]
[Source "ChessBase"]
[SourceQuality "1"]
[TimeControl "5400+30"]

{[%evp 9,98,21,17,18,27,25,23,19,14,15,22,19,22,23,39,7,22,21,50,13,37,15,32,22,27,19,35,35,27,18,39,39,42,41,41,44,43,14,28,2,31,0,13,14,13,-14,17,0,3,-59,-61,-69,-70,-143,-139,-144,-139,-134,-135,-143,-70,-71,-69,-71,-79,-79,-79,-79,-77,-70,-62,-74,-13,-14,-11,-11,-13,-12,-12,-58,-47,-44,-37,-50,-18,-32,-28,-182,-148,-965,-954]} 1. e4 {[%emt 0:00:08]} e5 {[%emt 0:00:10]} 2. Nf3 {[%emt 0:00:34]} Nc6 {[%emt 0:00:07]} 3. Bb5 {[%emt 0:01:01]} a6 {[%emt 0:00:12]} 4. Bxc6 {[%emt 0:00:18]} dxc6 {[%emt 0:00:22]} 5. O-O {[%emt 0:00:08]} Qf6 {[%emt 0:03:55]} 6. d4 {[%emt 0:00:29] C68: Ruy Lopez: Exchange Variation, sidelines.} exd4 {[%emt 0:00:20]} 7. Bg5 {[%emt 0:00:05]} Qd6 {[%emt 0:00:29]} 8. Nxd4 {[%emt 0:00:31] White has an edge.} Be7 $1 {[%emt 0:02:11] 8...Be7 is better than 8...Bd7.} 9. Bxe7 {[%emt 0:03:00]} Nxe7 {[%emt 0:00:53]} 10. Nc3 {[%emt 0:00:26]} O-O {[%emt 0:00:51]} 11. Nb3 {[%emt 0:02:45]} Qxd1 {[%emt 0:31:55]} 12. Rfxd1 {[%emt 0:01:03] [#]} b6 $146 {[%emt 0:00:49]} ({Predecessor:} 12... f5 13. Re1 b6 14. Rad1 fxe4 15. Rxe4 Ng6 16. f3 c5 17. Re2 Bb7 18. Kf2 Rad8 {½-½ (25) Popov,V (2114)-Demakov,V (2402) ICCF email 2009}) 13. a4 {[%emt 0:04:52]} c5 {[%emt 0:07:57]} 14. Rd2 {[%emt 0:07:27]} Re8 {[%emt 0:07:16]} 15. Rad1 {[%emt 0:04:56]} Be6 {[%emt 0:03:51]} 16. f3 {[%emt 0:16:53]} Kf8 {[%emt 0:10:02]} 17. Kf2 {[%emt 0:03:11]} Rac8 {[%emt 0:03:23]} 18. Nc1 {[%emt 0:05:26][%cal Oa4a5,Bb3c1,Bc1e2,Be2f4,Bf4d5][%mdl 32]} Nc6 {[%emt 0:02:31]} 19. N1e2 {[%emt 0:02:12]} Ne5 {[%emt 0:06:40] ...Nc4 is the strong threat.} 20. b3 {[%emt 0:00:19] Against Nc4} f6 {[%emt 0:00:37]} 21. Nf4 {[%emt 0:10:07]} Bf7 {[%emt 0:00:38]} 22. Nfd5 {[%emt 0:01:39]} Nc6 {[%emt 0:01:39]} 23. Ne2 {[%emt 0:00:57]} Red8 {[%emt 0:01:56]} 24. h4 {[%emt 0:01:21]} Rd6 {[%emt 0:01:34]} 25. g4 {[%emt 0:01:57]} Rcd8 {[%emt 0:00:47]} 26. Ke3 {[%emt 0:04:22]} Ne5 {[%emt 0:04:10]} 27. Ng1 {[%emt 0:07:07]} Bxd5 {[%emt 0:01:57]} 28. exd5 {[%emt 0:00:54]} c4 {[%emt 0:01:00]} 29. g5 {[%emt 0:02:48]} (29. Ne2 $11) 29... cxb3 $15 {[%emt 0:01:09]} 30. cxb3 {[%emt 0:00:00]} Ng6 {[%emt 0:00:11]} 31. h5 {[%emt 0:00:53]} ({White should play} 31. gxf6 $15 Rxf6 32. h5) 31... Ne7 $17 {[%emt 0:00:21][%cal Re7d5]} 32. f4 {[%emt 0:01:48]} Nxd5+ {[%emt 0:00:47]} 33. Kf3 {[%emt 0:00:00]} c6 {[%emt 0:01:42]} 34. Ne2 {[%emt 0:00:25]} Re8 {[%emt 0:00:47]} (34... fxg5 $17 {[%cal Og5g4] And now ...g4+! would win.} 35. fxg5 Ke7) 35. Nd4 $1 $15 {[%emt 0:00:45][%cal Od4c6]} Re3+ {[%emt 0:01:10]} 36. Kf2 {[%emt 0:00:22] [#]} Re4 $1 {[%emt 0:00:59]} 37. Nxc6 {[%emt 0:01:37]} Rxf4+ {[%emt 0:00:55]} 38. Kg3 {[%emt 0:00:00]} Rxc6 {[%emt 0:00:45]} (38... fxg5 39. Ne5 $16) 39. Rxd5 {[%emt 0:00:01]} fxg5 {[%emt 0:00:08]} 40. Rxg5 $17 {[%emt 0:00:38][%mdl 4096] Endgame [#] KRR-KRR} Rf7 {[%emt 0:00:42]} (40... Rb4 $1 $17 41. Rd3 h6 42. Rf3+ Kg8) 41. Re5 $11 {[%emt 0:01:00][%cal Rd1d8]} Re7 {[%emt 0:00:42]} 42. Rd8+ {[%emt 0:00:01]} Kf7 {[%emt 0:00:07]} 43. Rf5+ {[%emt 0:00:20]} Rf6 {[%emt 0:00:22]} 44. Rfd5 {[%emt 0:00:17]} (44. Rxf6+ $11 Kxf6 45. Kf4 (45. Rd6+ Re6 $17)) 44... Re3+ {[%emt 0:00:21]} 45. Kg4 {[%emt 0:00:01]} Re4+ 46. Kg3 Rfe6 {[%emt 0:01:18]} 47. Ra8 {[%emt 0:02:31]} ({Much weaker is} 47. R5d7+ Re7 48. Rd3 Kf6 $17) 47... Re3+ {[%emt 0:00:23]} 48. Kf4 $2 {[%emt 0:00:35]} (48. Kf2 $11) 48... R6e4+ $19 {[%emt 0:00:35]} ({Stronger than} 48... Rxb3 49. Rd7+ Re7 50. Rxe7+ Kxe7 51. Rxa6 $11) 49. Kg5 $2 {[%emt 0:00:01][%mdl 8192]} (49. Kf5 $17) 49... Ke6 {[%emt 0:00:23] Weighted Error Value: White=0.37/Black=0.10 (very precise)} 0-1

[Event "87th Spanish Championship 2022"]
[Site "Linares"]
[Date "2022.08.11"]
[Round "1.22"]
[White "Garza Marco, Sergio"]
[Black "Vesga Izeta, Markel"]
[Result "1/2-1/2"]
[ECO "E73"]
[WhiteElo "2408"]
[BlackElo "2143"]
[Annotator "TA"]
[PlyCount "76"]
[EventDate "2022.08.11"]
[EventType "swiss"]
[EventCountry "ESP"]
[SourceTitle "playchess.com"]
[Source "ChessBase"]
[SourceQuality "1"]
[TimeControl "5400+30"]

{[%evp 13,76,30,14,26,29,27,34,29,24,18,47,18,49,-109,0,0,53,57,59,62,70,47,62,55,59,29,53,0,0,0,13,15,14,43,87,76,85,86,81,25,23,0,26,32,35,22,27,25,29,8,8,-166,-162,-246,-215,-215,-215,-460,-460,-1366,0,0,0,0,0]} 1. d4 {[%emt 0:00:01]} Nf6 {[%emt 0:00:16]} 2. c4 {[%emt 0:00:05]} g6 {[%emt 0:00:05]} 3. Nc3 {[%emt 0:00:04]} Bg7 {[%emt 0:00:06]} 4. e4 {[%emt 0:00:06]} d6 {[%emt 0:00:04]} 5. Be2 {[%emt 0:00:04]} O-O {[%emt 0:00:07]} 6. Be3 {[%emt 0:00:04]} c5 {[%emt 0:01:57]} 7. d5 {[%emt 0:00:12]} e6 {[%emt 0:01:13]} 8. Nf3 {[%emt 0:00:07] E73: King's Indian: Averbakh Variation without 6...c5.} exd5 {[%emt 0:00:19]} 9. cxd5 {[%emt 0:00:05]} Bg4 {[%emt 0:19:21][%cal Ob7b5]} 10. Nd2 {[%emt 0:00:07] White is slightly better.} Bxe2 {[%emt 0:00:33]} 11. Qxe2 {[%emt 0:00:04]} Re8 {[%emt 0:01:14]} 12. O-O {[%emt 0:00:23]} (12. f3 $5 {[%cal Rd2c4]}) 12... Nbd7 {[%emt 0:18:39]} 13. f4 $2 {[%emt 0:00:22]} (13. a4 $14 {stays ahead.}) 13... a6 {[%emt 0:00:47]} (13... b5 $1 $17 {[%cal Rb5b4] Strongly threatening ...b4.} 14. a3 (14. Qxb5 Ng4 $17) (14. Nxb5 Nxe4 15. Qd3 Nxd2 $17) 14... a6) 14. a4 {[%emt 0:00:07]} Qc7 {[%emt 0:02:40] [#]} (14... Rb8 $11) 15. Kh1 $146 {[%emt 0:09:01]} ({Predecessor:} 15. Qf3 Nh5 16. g4 Nhf6 17. Bf2 h5 18. g5 Ng4 19. Kh1 Nxf2+ 20. Rxf2 Rf8 21. Rg2 Rae8 22. Nc4 {½-½ (22) Schreiner,T (1516)-Jung,M (1128) Rotenburg/Wuemme 2006}) 15... Rac8 {[%emt 0:04:09]} 16. a5 {[%emt 0:00:29]} Rb8 {[%emt 0:04:35]} 17. Qd3 {[%emt 0:06:08]} b5 {[%emt 0:06:52]} 18. axb6 $1 {[%emt 0:00:11]} Rxb6 {[%emt 0:00:12]} 19. Nc4 {[%emt 0:00:38]} Rb3 {[%emt 0:00:37][%cal Of6e4]} 20. Ra3 {[%emt 0:51:12]} ({Better is} 20. e5 $1 $14 dxe5 21. Rxa6) 20... Rxa3 $11 {[%emt 0:09:20]} 21. Nxa3 {[%emt 0:00:08]} Rb8 {[%emt 0:02:27]} 22. Qxa6 {[%emt 0:04:31]} Rxb2 {[%emt 0:14:00]} 23. Nc4 $1 {[%emt 0:00:06][%csl LRb2,LRd6]} Rb3 {[%emt 0:02:24]} 24. Nb5 {[%emt 0:01:03]} Qb8 {[%emt 0:02:12]} (24... Rxb5 $2 25. Qxb5 Nxe4 26. Qc6 $18) 25. Nbxd6 {[%emt 0:00:11] 0x0.001eba6d6e5bdp-1022s more active pieces.} Bf8 {[%emt 0:00:33] [#] aiming for ...Bxd6.} 26. Bg1 {[%emt 0:05:38]} (26. Nxf7 $1 $16 Kxf7 (26... Rb1 27. Rg1) 27. e5) 26... Bxd6 {[%emt 0:03:39]} 27. Qxd6 {[%emt 0:00:42] Qe7 is the strong threat.} (27. Nxd6 $5 {[%cal Re4e5]} Rb6 28. Qc8+ Qxc8 29. Nxc8 $14) 27... Qxd6 {[%emt 0:00:08]} 28. Nxd6 {[%emt 0:00:04]} Rb6 {[%emt 0:00:09]} 29. e5 {[%emt 0:05:11]} Nxd5 {[%emt 0:00:09]} 30. g3 {[%emt 0:00:07]} Rc6 $1 {[%emt 0:02:16]} 31. Ra1 {[%emt 0:01:48]} c4 {[%emt 0:03:52][%cal Bc5c4,Bc4c3][%mdl 32] White must now prevent ...c3.} 32. Bd4 {[%emt 0:00:23]} (32. Ra7 $2 c3 $1 33. Ra8+ (33. Rxd7 $2 c2 $19) 33... Kg7 $19) (32. Nb5 $11 {and White stays safe.}) 32... c3 $19 {[%emt 0:00:26]} 33. Ne4 {[%emt 0:04:28]} (33. Rc1 $142) 33... Rc4 {[%emt 0:00:55]} 34. Ra8+ {[%emt 0:00:04]} Kg7 $1 {[%emt 0:00:34]} 35. e6+ $2 {[%emt 0:00:18]} (35. Bxc3 Rxe4 36. e6+ N7f6 37. Bxf6+ Nxf6 38. exf7 Kxf7 39. Ra2) 35... Rxd4 {[%emt 0:00:01]} (35... N7f6 36. exf7 $1 Kxf7 37. Nd6+ Ke6 38. Nxc4 $18) 36. exd7 {[%emt 0:00:07] [#]} (36. Nxc3 $142 Nxc3 37. Rc8 Rd1+ 38. Kg2 Rd2+ 39. Kh1) 36... Nb6 $2 {[%emt 0:00:47]} ({Weaker is} 36... Rd1+ 37. Kg2 c2 38. Rg8+ Kxg8 39. d8=Q+ $17) ({Black should try} 36... c2 $1 $19 {( -> ...Ne3)} 37. Rc8 Ne3) 37. Ra2 $11 {[%emt 0:02:41]} ({Wrong is} 37. d8=Q $2 Rxd8 38. Ra2 (38. Rxd8 $2 {perishes.} c2 $19) 38... Nd5 $19) 37... Nxd7 {[%emt 0:00:44]} 38. Nxc3 {[%emt 0:00:03]} Nf6 {[%emt 0:00:11] Weighted Error Value: White=0.62/Black=0.26 (precise)} 1/2-1/2

[Event "87th Spanish Championship 2022"]
[Site "Linares"]
[Date "2022.08.11"]
[Round "1.23"]
[White "Centeno Mendoza, Julio Stefano"]
[Black "Lianes Garcia, Marcos"]
[Result "0-1"]
[ECO "B22"]
[WhiteElo "2148"]
[BlackElo "2411"]
[Annotator "TA"]
[PlyCount "62"]
[EventDate "2022.08.11"]
[EventType "swiss"]
[EventCountry "ESP"]
[SourceTitle "playchess.com"]
[Source "ChessBase"]
[SourceQuality "1"]
[TimeControl "5400+30"]

{[%evp 9,62,22,10,17,14,16,10,0,0,-15,12,0,-1,-9,-12,-31,-30,-19,-16,-28,-16,-73,-75,-71,-63,-69,-77,-80,-54,-66,-55,-105,-107,-123,-74,-96,-77,-159,-156,-294,-298,-291,-288,-306,-296,-348,-339,-429,-437,-417,-429,-443,-428,-1233,-1202]} 1. e4 {[%emt 0:00:03]} c5 {[%emt 0:00:58]} 2. c3 {[%emt 0:00:17]} d5 {[%emt 0:00:41]} 3. exd5 {[%emt 0:00:21]} Nf6 {[%emt 0:00:10]} 4. c4 {[%emt 0:16:11]} e6 {[%emt 0:02:12]} 5. dxe6 {[%emt 0:00:14]} Bxe6 {[%emt 0:01:01]} 6. d3 {[%emt 0:01:38] B22: Sicilian: 2 c3.} Nc6 {[%emt 0:06:30]} 7. Nf3 {[%emt 0:03:40] [#]} Qc7 $146 {[%emt 0:05:29]} ({Predecessor:} 7... Bd6 8. Be2 O-O 9. Nc3 Bc7 10. O-O a6 11. Be3 Qd6 12. g3 Bh3 13. Re1 Rad8 {0-1 (32) Meyer,I (1681)-Frohnhaeuser,S (1928) Playchess.com INT 2021}) 8. Be3 {[%emt 0:20:23] The position is equal.} Rd8 {[%emt 0:23:54]} 9. Qb3 {[%emt 0:10:34]} Be7 {[%emt 0:04:01][%mdl 1024] Black has compensation.} 10. Be2 {[%emt 0:01:21]} Ng4 {[%emt 0:09:31]} 11. Nc3 {[%emt 0:10:46]} O-O {[%emt 0:07:26]} 12. O-O {[%emt 0:03:19]} Nce5 {[%emt 0:20:37]} 13. Nxe5 {[%emt 0:00:34]} Nxe3 {[%emt 0:00:14]} 14. fxe3 {[%emt 0:00:45] [#] Nf3 is the strong threat.} Qxe5 {[%emt 0:00:05]} 15. Ne4 {[%emt 0:04:38]} (15. Rf3 $11) 15... f5 $17 {[%emt 0:01:17]} 16. Qc3 {[%emt 0:02:20]} ({Not} 16. Qxb7 $2 Rd7 17. Qc6 fxe4 18. Qxe4 Qxe4 19. Rxf8+ Bxf8 $19) 16... Qc7 {[%emt 0:00:12]} 17. Nd2 {[%emt 0:00:09]} Bf6 {[%emt 0:02:25]} 18. Qc1 {[%emt 0:01:01]} Rfe8 {[%emt 0:01:40]} 19. Kh1 {[%emt 0:10:32]} b6 {[%emt 0:02:03]} 20. Nf3 {[%emt 0:05:22] Inhibits Qe5.} (20. e4 $15) 20... Bf7 {[%emt 0:00:26]} 21. Re1 {[%emt 0:00:29][%cal Od3d4]} h6 {[%emt 0:04:59]} (21... g5 $142 {And now ...g4 would win.} 22. Nd2 g4) 22. Bf1 {[%emt 0:01:39][%cal Od3d4]} g5 {[%emt 0:00:56][%cal Bg7g5,Bg5g4][%mdl 32] Black is much more active.} 23. e4 {[%emt 0:01:21] [#]} (23. Qc2 $142) 23... g4 $1 {[%emt 0:00:38]} 24. Qxh6 {[%emt 0:00:43]} (24. e5 $17 Bg7 25. Nh4 Rxe5 26. Rxe5 Qxe5 27. g3) 24... Bg7 $19 {[%emt 0:00:12] A strong pair of Bishops.} 25. Qg5 {[%emt 0:00:08][%cal Oe4f5]} gxf3 {[%emt 0:00:15]} 26. gxf3 {[%emt 0:00:06]} fxe4 {[%emt 0:00:55]} 27. fxe4 {[%emt 0:00:04]} Qe5 {[%emt 0:00:37]} 28. Qg2 {[%emt 0:01:29]} Re6 {[%emt 0:00:24]} 29. Re3 {[%emt 0:00:15]} Rg6 {[%emt 0:00:20]} 30. Rg3 {[%emt 0:00:35]} Rxg3 {[%emt 0:00:11]} 31. hxg3 {[%emt 0:00:04]} (31. Qxg3 $142 Qxg3 32. hxg3) 31... Rd6 {[%emt 0:00:07] Weighted Error Value: White=0.41/Black=0.05 (flawless)} 0-1

[Event "87th Spanish Championship 2022"]
[Site "Linares"]
[Date "2022.08.11"]
[Round "1.24"]
[White "Suarez Uriel, Adrian"]
[Black "Serrano Almendros, Angel"]
[Result "1-0"]
[ECO "C02"]
[WhiteElo "2386"]
[BlackElo "2049"]
[Annotator "TA"]
[PlyCount "85"]
[EventDate "2022.08.11"]
[EventType "swiss"]
[EventCountry "ESP"]
[SourceTitle "playchess.com"]
[Source "ChessBase"]
[SourceQuality "1"]
[TimeControl "5400+30"]

{[%evp 21,85,-75,-78,-109,-106,-134,-143,-152,-145,-156,-113,-120,-122,-112,-120,-122,-75,-66,-44,-43,41,12,12,14,87,96,92,79,90,16,14,0,0,0,0,0,111,106,133,98,172,166,170,146,443,424,12823,12607,6383,9036,5974,6170,5214,5197,1879,1200,1192,1130,1064,627,583,560,818,817,739,453]} 1. e4 {[%emt 0:01:08]} e6 {[%emt 0:00:01]} 2. d4 {[%emt 0:00:06]} d5 {[%emt 0:00:04]} 3. e5 {[%emt 0:00:10]} c5 {[%emt 0:05:51]} 4. c3 {[%emt 0:00:07]} cxd4 {[%emt 0:01:28]} 5. cxd4 {[%emt 0:00:06]} Nc6 {[%emt 0:00:10]} 6. Nf3 {[%emt 0:01:23]} Qb6 {[%emt 0:00:07]} 7. Nc3 {[%emt 0:00:38]} Bd7 {[%emt 0:01:20]} 8. Bd3 {[%emt 0:05:52]} Nxd4 {[%emt 0:03:55]} 9. Nxd4 {[%emt 0:00:06]} Qxd4 {[%emt 0:00:07]} 10. O-O {[%emt 0:00:03]} a6 {[%emt 0:00:44]} 11. Re1 {[%emt 0:07:26]} Ne7 {[%emt 0:06:55]} ({Don't play} 11... Bc5 12. Be3 Qb4 13. a3 Qxb2 14. Nxd5 $14) 12. Qf3 {[%emt 0:31:13] C02: French: Advance Variation.} Ng6 {[%emt 0:16:12]} 13. Qg3 {[%emt 0:18:49]} Be7 {[%emt 0:01:48]} 14. Re2 {[%emt 0:10:32] [#] Black is clearly better.} Bh4 $146 {[%emt 0:15:56]} ({Predecessor:} 14... O-O 15. Bd2 Bc6 16. Kh1 Qh4 17. Bxg6 hxg6 18. Qd3 d4 19. Ne4 Bb5 20. Qf3 Bxe2 21. Qxe2 {0-1 (29) Schwab,F (1989)-Hasenohr,B (2240) Celerina 2016}) 15. Qh3 {[%emt 0:03:06]} Nxe5 {[%emt 0:00:35]} 16. Rxe5 {[%emt 0:00:30]} Bxf2+ {[%emt 0:10:36]} ({Don't do} 16... Qxe5 17. Qxh4 Qe1+ 18. Bf1 $16) 17. Kf1 {[%emt 0:01:03]} Qxe5 {[%emt 0:00:08][%csl Gf2][%cal Re5e1]} 18. Kxf2 {[%emt 0:00:01]} Qd4+ {[%emt 0:00:42]} (18... d4 $142 19. Ne2 Qf6+ 20. Qf3 Qxf3+ 21. gxf3 e5) 19. Kf1 $17 {[%emt 0:00:22]} e5 {[%emt 0:00:41]} 20. Qg3 {[%emt 0:00:01] Black must now prevent Ne2.} e4 {[%emt 0:00:20]} (20... O-O $15 21. Ne2 Qb4 22. Qxe5 Bb5) 21. Be2 {[%emt 0:00:34][%mdl 1024] Strongly threatening Bg5. White has compensation.} Qf6+ {[%emt 0:00:32]} 22. Kg1 {[%emt 0:00:21] White wants to play Bg5.} Bc6 {[%emt 0:00:30]} (22... O-O $11) 23. Bg5 $16 {[%emt 0:01:30]} Qe6 {[%emt 0:01:06]} (23... Qd4+ $2 24. Be3 Qb4 25. Qxg7 $18) 24. Rf1 {[%emt 0:03:52]} f5 {[%emt 0:02:56] Inhibits Bg4.} 25. Be3 {[%emt 0:00:04] 0x0.0002da51cea4dp-1022s more active pieces. The black rooks are badly placed.} (25. Bh5+ $1 $16 g6 26. Bd1) 25... O-O $1 $11 {[%emt 0:05:36]} 26. Bd4 $36 {[%emt 0:00:18][%csl Gd4][%cal Rg3g7][%mdl 2048] White has good play.} Rf7 {[%emt 0:01:36]} 27. Bh5 {[%emt 0:01:00]} g6 {[%emt 0:01:00][%cal Of5f4]} 28. Ne2 {[%emt 0:00:10]} Bb5 {[%emt 0:05:44]} (28... Rc8 $1 $11 {keeps the balance.}) 29. Nf4 $16 {[%emt 0:00:13]} Qd6 {[%emt 0:00:13] [#]} 30. Rc1 {[%emt 0:00:18] h4 is the strong threat.} Rc7 {[%emt 0:00:53]} (30... Re8 $16) 31. Rxc7 $18 {[%emt 0:01:25]} Qxc7 {[%emt 0:00:01]} 32. h4 {[%emt 0:00:06][%cal Oh5g6] Bxg6! would kill now. The board is on fire.} Be8 {[%emt 0:01:13][%mdl 8192] [#] This costs Black the game.} (32... Qd6 $16 {was necessary.}) 33. Qg5 $1 {[%emt 0:01:30] White is clearly winning.} Qd8 {[%emt 0:04:48] [#]} (33... Qc1+ $142 34. Kh2 Qc7) 34. Qh6 $1 {[%emt 0:01:05][%csl Gd4][%cal Rh6g7]} Qe7 {[%emt 0:01:11] Inhibits Qg7+.} 35. Nxd5 {[%emt 0:00:09]} Qf8 {[%emt 0:01:06]} 36. Nf6+ {[%emt 0:00:04][%mdl 64] Deflection, Double Attack} Kf7 {[%emt 0:00:08]} 37. Qxh7+ {[%emt 0:00:04]} Ke6 {[%emt 0:00:09]} 38. Bd1 {[%emt 0:00:43] Intending Qc7 and mate. This bishop pair is nice.} Qb4 {[%emt 0:01:11]} 39. Bb3+ {[%emt 0:00:33]} Kd6 {[%emt 0:00:02]} 40. Nxe8+ {[%emt 0:00:46]} Rxe8 {[%emt 0:00:06]} 41. Qxg6+ {[%emt 0:00:03]} Kd7 {[%emt 0:00:35]} 42. Qxf5+ {[%emt 0:00:05]} Kc7 {[%emt 0:00:16]} 43. Qc5+ {[%emt 0:00:02] Weighted Error Value: White=0.23 (precise) /Black=0.46} 1-0